[Event "Titled Tuesday Blitz May 25 2021"]
[White "Abdrlauf, Elham"]
[Black "Perez Gormaz, Matias"]
[WhiteFideId "1533533"]
[BlackFideId "3406342"]
[WhiteElo "2326"]
[BlackElo "2414"]
[Result "1-0"]
[Round "04"]
[TimeControl "180+1"]
[Date "2021.05.25"]
[WhiteClock "0:00:20"]
[BlackClock "0:00:02"]

1. e4 {[%clk 0:03:00]}  c5 {[%clk 0:02:53]} 2. Nf3 {[%clk 0:03:00]}  d6 {[%clk 0:02:51]} 3. d4 {[%clk 0:03:01]}  cxd4 {[%clk 0:02:52]} 4. Nxd4 {[%clk 0:03:01]}  Nf6 {[%clk 0:02:53]} 5. Nc3 {[%clk 0:03:02]}  a6 {[%clk 0:02:53]} 6. Bc4 {[%clk 0:03:02]}  e6 {[%clk 0:02:53]} 7. Be3 {[%clk 0:03:02]}  b5 {[%clk 0:02:50]} 8. Bb3 {[%clk 0:03:02]}  Nbd7 {[%clk 0:02:47]} 9. Bxe6 {[%clk 0:03:00]}  fxe6 {[%clk 0:02:39]} 10. Nxe6 {[%clk 0:03:01]}  Qa5 {[%clk 0:02:37]} 11. a3 {[%clk 0:02:48]}  b4 {[%clk 0:00:31]} 12. axb4 {[%clk 0:02:48]}  Qxb4 {[%clk 0:00:32]} 13. Nc7+ {[%clk 0:02:46]}  Kf7 {[%clk 0:00:32]} 14. Nxa8 {[%clk 0:02:38]}  Qb7 {[%clk 0:00:32]} 15. O-O {[%clk 0:01:35]}  Qxa8 {[%clk 0:00:31]} 16. Qd4 {[%clk 0:01:27]}  Qc6 {[%clk 0:00:30]} 17. f4 {[%clk 0:01:21]}  Bb7 {[%clk 0:00:27]} 18. Ra4 {[%clk 0:01:08]}  d5 {[%clk 0:00:17]} 19. exd5 {[%clk 0:00:53]}  Qc7 {[%clk 0:00:17]} 20. Rc4 {[%clk 0:00:50]}  Qd6 {[%clk 0:00:11]} 21. Qa7 {[%clk 0:00:41]}  Bxd5 {[%clk 0:00:05]} 22. Rd1 {[%clk 0:00:41]}  Bxc4 {[%clk 0:00:04]} 23. Rxd6 {[%clk 0:00:41]}  Bxd6 {[%clk 0:00:05]} 24. Qd4 {[%clk 0:00:37]}  Re8 {[%clk 0:00:03]} 25. Qxc4+ {[%clk 0:00:37]}  Kf8 {[%clk 0:00:04]} 26. Bf2 {[%clk 0:00:29]}  Be7 {[%clk 0:00:03]} 27. h3 {[%clk 0:00:26]}  Rb8 {[%clk 0:00:03]} 28. b3 {[%clk 0:00:23]}  a5 {[%clk 0:00:04]} 29. Nd5 {[%clk 0:00:21]}  Nxd5 {[%clk 0:00:03]} 30. Qxd5 {[%clk 0:00:22]}  Nf6 {[%clk 0:00:01]} 31. Qxa5 {[%clk 0:00:22]}  Rd8 {[%clk 0:00:02]} 32. Bc5 {[%clk 0:00:20]}  Bxc5+ {[%clk 0:00:01]} 33. Qxc5+ {[%clk 0:00:21]}  Kf7 {[%clk 0:00:02]} 34. Qc4+ {[%clk 0:00:20]}  Kf8 {[%clk 0:00:02]} 35. b4 {[%clk 0:00:21]}  g6 {[%clk 0:00:02]} 36. b5 {[%clk 0:00:20]} 1-0


[Site "https://www.chess.com"]

[Event "Titled Tuesday Blitz May 25 2021"]
[White "Avramidou, Anastasia"]
[Black "Solon, Nathan"]
[WhiteFideId "4239873"]
[BlackFideId "2017229"]
[WhiteElo "2183"]
[BlackElo "2664"]
[Result "0-1"]
[Round "04"]
[TimeControl "180+1"]
[Date "2021.05.25"]
[WhiteClock "0:00:04"]
[BlackClock "0:00:17"]

1. d4 {[%clk 0:02:56]}  d5 {[%clk 0:02:58]} 2. c4 {[%clk 0:02:56]}  e6 {[%clk 0:02:58]} 3. Nc3 {[%clk 0:02:55]}  c5 {[%clk 0:02:58]} 4. Nf3 {[%clk 0:02:54]}  cxd4 {[%clk 0:02:58]} 5. Nxd4 {[%clk 0:02:54]}  e5 {[%clk 0:02:58]} 6. Nf3 {[%clk 0:02:51]}  d4 {[%clk 0:02:58]} 7. Nb1 {[%clk 0:02:50]}  Nc6 {[%clk 0:02:57]} 8. e3 {[%clk 0:02:50]}  Bb4+ {[%clk 0:02:55]} 9. Bd2 {[%clk 0:02:49]}  dxe3 {[%clk 0:02:55]} 10. fxe3 {[%clk 0:02:50]}  Bc5 {[%clk 0:02:53]} 11. Nc3 {[%clk 0:02:49]}  Nf6 {[%clk 0:02:53]} 12. Qc2 {[%clk 0:02:49]}  O-O {[%clk 0:02:44]} 13. a3 {[%clk 0:02:49]}  Re8 {[%clk 0:02:30]} 14. Bd3 {[%clk 0:02:38]}  h6 {[%clk 0:02:16]} 15. O-O-O {[%clk 0:02:33]}  Ng4 {[%clk 0:02:10]} 16. Kb1 {[%clk 0:02:21]}  Nf2 {[%clk 0:02:06]} 17. Bc1 {[%clk 0:02:21]}  Nxd1 {[%clk 0:01:57]} 18. Rxd1 {[%clk 0:02:22]}  Qa5 {[%clk 0:01:10]} 19. Nd5 {[%clk 0:02:07]}  Bf8 {[%clk 0:00:57]} 20. Nd2 {[%clk 0:01:38]}  Bg4 {[%clk 0:00:53]} 21. Rf1 {[%clk 0:01:32]}  Rac8 {[%clk 0:00:50]} 22. Nb3 {[%clk 0:01:24]}  Qd8 {[%clk 0:00:49]} 23. Bf5 {[%clk 0:01:07]}  Bxf5 {[%clk 0:00:46]} 24. Qxf5 {[%clk 0:01:08]}  f6 {[%clk 0:00:36]} 25. Qg6 {[%clk 0:01:04]}  Kh8 {[%clk 0:00:36]} 26. g4 {[%clk 0:00:41]}  Ne7 {[%clk 0:00:36]} 27. Nxe7 {[%clk 0:00:30]}  Rxe7 {[%clk 0:00:36]} 28. g5 {[%clk 0:00:27]}  Qe8 {[%clk 0:00:29]} 29. Qe4 {[%clk 0:00:18]}  hxg5 {[%clk 0:00:23]} 30. Rf3 {[%clk 0:00:17]}  Qh5 {[%clk 0:00:22]} 31. Qf5 {[%clk 0:00:16]}  Rxc4 {[%clk 0:00:20]} 32. Nd2 {[%clk 0:00:10]}  Rh4 {[%clk 0:00:19]} 33. Qc8 {[%clk 0:00:10]}  Kg8 {[%clk 0:00:19]} 34. Qc5 {[%clk 0:00:05]}  Rxh2 {[%clk 0:00:17]} 35. Qc4+ {[%clk 0:00:05]}  Qf7 {[%clk 0:00:17]} 36. Qc8 {[%clk 0:00:05]}  Rc7 {[%clk 0:00:16]} 37. Qd8 {[%clk 0:00:04]}  Qd7 {[%clk 0:00:16]} 38. Qb8 {[%clk 0:00:03]}  Rxc1+ {[%clk 0:00:16]} 39. Kxc1 {[%clk 0:00:03]}  Qxd2+ {[%clk 0:00:16]} 40. Kb1 {[%clk 0:00:04]}  Qxb2# {[%clk 0:00:17]} 0-1


[Site "https://www.chess.com"]

[Event "Titled Tuesday Blitz May 25 2021"]
[White "Babiy, Olga"]
[Black "Henderson de La Fuente, Lance"]
[WhiteFideId "14117258"]
[BlackFideId "32096585"]
[WhiteElo "2213"]
[BlackElo "2280"]
[Result "0-1"]
[Round "04"]
[TimeControl "180+1"]
[Date "2021.05.25"]
[WhiteClock "0:00:04"]
[BlackClock "0:00:20"]

1. d4 {[%clk 0:03:00]}  Nf6 {[%clk 0:02:56]} 2. Nf3 {[%clk 0:03:00]}  e6 {[%clk 0:02:57]} 3. Bf4 {[%clk 0:02:56]}  c5 {[%clk 0:02:57]} 4. e3 {[%clk 0:02:56]}  b6 {[%clk 0:02:56]} 5. Nbd2 {[%clk 0:02:57]}  Be7 {[%clk 0:02:56]} 6. Bd3 {[%clk 0:02:56]}  Bb7 {[%clk 0:02:55]} 7. h3 {[%clk 0:02:56]}  d6 {[%clk 0:02:55]} 8. O-O {[%clk 0:02:55]}  O-O {[%clk 0:02:56]} 9. c3 {[%clk 0:02:54]}  Nbd7 {[%clk 0:02:56]} 10. Bh2 {[%clk 0:02:53]}  a6 {[%clk 0:02:56]} 11. a4 {[%clk 0:02:53]}  Qc7 {[%clk 0:02:56]} 12. Re1 {[%clk 0:02:34]}  Rfe8 {[%clk 0:02:52]} 13. e4 {[%clk 0:02:34]}  Bf8 {[%clk 0:02:50]} 14. Rc1 {[%clk 0:02:19]}  e5 {[%clk 0:02:49]} 15. Bb1 {[%clk 0:02:05]}  b5 {[%clk 0:02:44]} 16. Qb3 {[%clk 0:01:56]}  c4 {[%clk 0:02:35]} 17. Qd1 {[%clk 0:01:55]}  Bc6 {[%clk 0:02:22]} 18. Nh4 {[%clk 0:01:50]}  g6 {[%clk 0:02:18]} 19. f4 {[%clk 0:01:45]}  Qb6 {[%clk 0:02:13]} 20. Kh1 {[%clk 0:01:35]}  exd4 {[%clk 0:01:55]} 21. Bg1 {[%clk 0:01:35]}  Qb7 {[%clk 0:01:51]} 22. Bxd4 {[%clk 0:01:20]}  Nxe4 {[%clk 0:01:47]} 23. Bxe4 {[%clk 0:00:59]}  Bxe4 {[%clk 0:01:47]} 24. f5 {[%clk 0:01:00]}  Bd5 {[%clk 0:01:34]} 25. Qg4 {[%clk 0:00:54]}  Ne5 {[%clk 0:01:15]} 26. Qg5 {[%clk 0:00:54]}  h6 {[%clk 0:01:07]} 27. Qg3 {[%clk 0:00:54]}  g5 {[%clk 0:01:07]} 28. Nhf3 {[%clk 0:00:51]}  f6 {[%clk 0:01:05]} 29. Rb1 {[%clk 0:00:27]}  bxa4 {[%clk 0:00:56]} 30. h4 {[%clk 0:00:23]}  Bg7 {[%clk 0:00:52]} 31. hxg5 {[%clk 0:00:23]}  hxg5 {[%clk 0:00:53]} 32. Nxg5 {[%clk 0:00:21]}  fxg5 {[%clk 0:00:53]} 33. Qxg5 {[%clk 0:00:22]}  Qe7 {[%clk 0:00:52]} 34. Qg3 {[%clk 0:00:15]}  Qf7 {[%clk 0:00:52]} 35. Rf1 {[%clk 0:00:15]}  Qf6 {[%clk 0:00:49]} 36. Rbe1 {[%clk 0:00:15]}  Rab8 {[%clk 0:00:43]} 37. Ne4 {[%clk 0:00:14]}  Bxe4 {[%clk 0:00:43]} 38. Rxe4 {[%clk 0:00:15]}  Rxb2 {[%clk 0:00:42]} 39. Rg4 {[%clk 0:00:15]}  a3 {[%clk 0:00:37]} 40. Rg6 {[%clk 0:00:15]}  Qf7 {[%clk 0:00:23]} 41. Bxe5 {[%clk 0:00:16]}  Rxe5 {[%clk 0:00:23]} 42. f6 {[%clk 0:00:16]}  Rh5+ {[%clk 0:00:19]} 43. Kg1 {[%clk 0:00:15]}  Qa7+ {[%clk 0:00:20]} 44. Rf2 {[%clk 0:00:04]}  Rb1# {[%clk 0:00:20]} 0-1


[Site "https://www.chess.com"]

[Event "Titled Tuesday Blitz May 25 2021"]
[White "Barrientos, Sergio E"]
[Black "Hasangatin, Ramil"]
[WhiteFideId "4401824"]
[BlackFideId "4122160"]
[WhiteElo "2536"]
[BlackElo "2375"]
[Result "0-1"]
[Round "04"]
[TimeControl "180+1"]
[Date "2021.05.25"]
[WhiteClock "0:00:54"]
[BlackClock "0:00:27"]

1. d4 {[%clk 0:03:00]}  d6 {[%clk 0:02:58]} 2. e4 {[%clk 0:02:59]}  Nf6 {[%clk 0:02:58]} 3. f3 {[%clk 0:02:59]}  e5 {[%clk 0:02:58]} 4. d5 {[%clk 0:02:56]}  Be7 {[%clk 0:02:58]} 5. c4 {[%clk 0:02:56]}  Nh5 {[%clk 0:02:57]} 6. Nc3 {[%clk 0:02:48]}  Bg5 {[%clk 0:02:57]} 7. g3 {[%clk 0:02:39]}  a5 {[%clk 0:02:56]} 8. f4 {[%clk 0:02:29]}  exf4 {[%clk 0:02:53]} 9. Qxh5 {[%clk 0:02:27]}  g6 {[%clk 0:02:51]} 10. Qf3 {[%clk 0:02:24]}  fxg3 {[%clk 0:02:49]} 11. hxg3 {[%clk 0:02:20]}  h5 {[%clk 0:02:48]} 12. Bxg5 {[%clk 0:02:18]}  Qxg5 {[%clk 0:02:47]} 13. Qf4 {[%clk 0:02:18]}  Qe7 {[%clk 0:02:44]} 14. Nf3 {[%clk 0:02:17]}  Bg4 {[%clk 0:02:43]} 15. O-O-O {[%clk 0:02:14]}  Nd7 {[%clk 0:02:42]} 16. Bd3 {[%clk 0:02:14]}  Bxf3 {[%clk 0:02:41]} 17. Qxf3 {[%clk 0:02:14]}  Ne5 {[%clk 0:02:42]} 18. Qf4 {[%clk 0:02:13]}  O-O {[%clk 0:02:36]} 19. Be2 {[%clk 0:02:11]}  Kg7 {[%clk 0:02:33]} 20. g4 {[%clk 0:01:55]}  g5 {[%clk 0:02:32]} 21. Qf5 {[%clk 0:01:47]}  h4 {[%clk 0:02:32]} 22. Nb5 {[%clk 0:01:35]}  Ng6 {[%clk 0:02:18]} 23. Nd4 {[%clk 0:01:31]}  Qe5 {[%clk 0:02:17]} 24. Qf3 {[%clk 0:01:25]}  Qf4+ {[%clk 0:02:15]} 25. Kc2 {[%clk 0:01:25]}  Qxf3 {[%clk 0:02:15]} 26. Bxf3 {[%clk 0:01:26]}  Ne5 {[%clk 0:02:14]} 27. Be2 {[%clk 0:01:26]}  Kg6 {[%clk 0:02:06]} 28. b3 {[%clk 0:01:25]}  Rh8 {[%clk 0:02:01]} 29. Rh3 {[%clk 0:01:24]}  a4 {[%clk 0:01:52]} 30. b4 {[%clk 0:01:24]}  a3 {[%clk 0:01:53]} 31. Rf1 {[%clk 0:01:19]}  c5 {[%clk 0:01:50]} 32. bxc5 {[%clk 0:01:18]}  dxc5 {[%clk 0:01:50]} 33. Nb5 {[%clk 0:01:17]}  Ra4 {[%clk 0:01:42]} 34. Nxa3 {[%clk 0:01:13]}  Rha8 {[%clk 0:01:40]} 35. Kb2 {[%clk 0:01:13]}  R8a6 {[%clk 0:01:26]} 36. Rb3 {[%clk 0:01:12]}  f6 {[%clk 0:01:20]} 37. Rxb7 {[%clk 0:01:09]}  Rxa3 {[%clk 0:01:18]} 38. Ra1 {[%clk 0:01:07]}  Re3 {[%clk 0:01:09]} 39. Bf1 {[%clk 0:01:05]}  Rxe4 {[%clk 0:01:08]} 40. a4 {[%clk 0:00:59]}  Rxg4 {[%clk 0:01:04]} 41. a5 {[%clk 0:01:00]}  Nxc4+ {[%clk 0:01:03]} 42. Kc3 {[%clk 0:00:59]}  Rxa5 {[%clk 0:00:44]} 43. Bd3+ {[%clk 0:00:59]}  f5 {[%clk 0:00:43]} 44. Rxa5 {[%clk 0:00:58]}  Nxa5 {[%clk 0:00:42]} 45. Rb6+ {[%clk 0:00:59]}  Kh5 {[%clk 0:00:39]} 46. Bxf5 {[%clk 0:00:59]}  Rg3+ {[%clk 0:00:39]} 47. Kc2 {[%clk 0:00:58]}  Nc4 {[%clk 0:00:38]} 48. Bg6+ {[%clk 0:00:57]}  Kg4 {[%clk 0:00:36]} 49. Re6 {[%clk 0:00:57]}  Ne3+ {[%clk 0:00:35]} 50. Rxe3 {[%clk 0:00:56]}  Rxe3 {[%clk 0:00:34]} 51. d6 {[%clk 0:00:57]}  Re6 {[%clk 0:00:29]} 52. d7 {[%clk 0:00:55]}  Rd6 {[%clk 0:00:29]} 53. Bf7 {[%clk 0:00:55]}  h3 {[%clk 0:00:27]} 54. Be6+ {[%clk 0:00:54]}  Kg3 {[%clk 0:00:27]} 0-1


[Site "https://www.chess.com"]

[Event "Titled Tuesday Blitz May 25 2021"]
[White "Bortnyk, Olexandr"]
[Black "Espinosa Veloz, Ermes"]
[WhiteFideId "14120828"]
[BlackFideId "3507424"]
[WhiteElo "2723"]
[BlackElo "2333"]
[Result "1-0"]
[Round "04"]
[TimeControl "180+1"]
[Date "2021.05.25"]
[WhiteClock "0:00:06"]
[BlackClock "0:00:13"]

1. d4 {[%clk 0:03:00]}  Nf6 {[%clk 0:02:58]} 2. Bf4 {[%clk 0:02:59]}  g6 {[%clk 0:02:57]} 3. e3 {[%clk 0:02:55]}  Bg7 {[%clk 0:02:58]} 4. h4 {[%clk 0:02:56]}  d6 {[%clk 0:02:55]} 5. h5 {[%clk 0:02:56]}  Nxh5 {[%clk 0:02:53]} 6. Rxh5 {[%clk 0:02:57]}  gxh5 {[%clk 0:02:53]} 7. Qxh5 {[%clk 0:02:57]}  Nc6 {[%clk 0:02:46]} 8. Nf3 {[%clk 0:02:56]}  Qd7 {[%clk 0:02:37]} 9. Bc4 {[%clk 0:02:47]}  Qf5 {[%clk 0:02:31]} 10. Ng5 {[%clk 0:02:44]}  Nd8 {[%clk 0:01:41]} 11. Bd3 {[%clk 0:02:21]}  Qg4 {[%clk 0:01:40]} 12. Qh2 {[%clk 0:02:20]}  h6 {[%clk 0:01:35]} 13. Ne4 {[%clk 0:02:16]}  Bf5 {[%clk 0:01:23]} 14. Nbc3 {[%clk 0:02:15]}  Ne6 {[%clk 0:01:21]} 15. Bg3 {[%clk 0:01:00]}  O-O-O {[%clk 0:01:19]} 16. f3 {[%clk 0:00:55]}  Qg6 {[%clk 0:01:18]} 17. Nd5 {[%clk 0:00:46]}  Rhe8 {[%clk 0:01:18]} 18. Bh4 {[%clk 0:00:45]}  Ng5 {[%clk 0:01:13]} 19. Nf4 {[%clk 0:00:35]}  Qh7 {[%clk 0:01:07]} 20. Bxg5 {[%clk 0:00:17]}  hxg5 {[%clk 0:01:06]} 21. Qxh7 {[%clk 0:00:18]}  Bxh7 {[%clk 0:01:07]} 22. Nxg5 {[%clk 0:00:19]}  Bxd3 {[%clk 0:01:06]} 23. cxd3 {[%clk 0:00:20]}  e5 {[%clk 0:00:57]} 24. Nh5 {[%clk 0:00:15]}  Rg8 {[%clk 0:00:53]} 25. d5 {[%clk 0:00:12]}  e4 {[%clk 0:00:46]} 26. Nxe4 {[%clk 0:00:06]}  Rh8 {[%clk 0:00:42]} 27. Nhg3 {[%clk 0:00:05]}  Bxb2 {[%clk 0:00:40]} 28. Rb1 {[%clk 0:00:05]}  Bg7 {[%clk 0:00:41]} 29. Kf2 {[%clk 0:00:05]}  Rde8 {[%clk 0:00:40]} 30. Nf5 {[%clk 0:00:04]}  Rh7 {[%clk 0:00:38]} 31. Nexd6+ {[%clk 0:00:03]}  cxd6 {[%clk 0:00:37]} 32. Nxd6+ {[%clk 0:00:04]}  Kd7 {[%clk 0:00:38]} 33. Nxe8 {[%clk 0:00:05]}  Kxe8 {[%clk 0:00:39]} 34. Rxb7 {[%clk 0:00:05]}  a5 {[%clk 0:00:38]} 35. d4 {[%clk 0:00:05]}  Bf8 {[%clk 0:00:35]} 36. e4 {[%clk 0:00:05]}  Bb4 {[%clk 0:00:35]} 37. e5 {[%clk 0:00:04]}  Rh4 {[%clk 0:00:33]} 38. g4 {[%clk 0:00:04]}  Rh2+ {[%clk 0:00:32]} 39. Ke3 {[%clk 0:00:05]}  Rxa2 {[%clk 0:00:33]} 40. d6 {[%clk 0:00:05]}  Ra1 {[%clk 0:00:31]} 41. f4 {[%clk 0:00:05]}  Re1+ {[%clk 0:00:31]} 42. Kd3 {[%clk 0:00:05]}  Rd1+ {[%clk 0:00:31]} 43. Kc4 {[%clk 0:00:06]}  Be1 {[%clk 0:00:23]} 44. f5 {[%clk 0:00:04]}  Bf2 {[%clk 0:00:23]} 45. Re7+ {[%clk 0:00:03]}  Kf8 {[%clk 0:00:23]} 46. g5 {[%clk 0:00:03]}  Rxd4+ {[%clk 0:00:22]} 47. Kb5 {[%clk 0:00:03]}  Rd5+ {[%clk 0:00:20]} 48. Kc6 {[%clk 0:00:04]}  Rc5+ {[%clk 0:00:20]} 49. Kd7 {[%clk 0:00:05]}  Bh4 {[%clk 0:00:15]} 50. f6 {[%clk 0:00:04]}  Kg8 {[%clk 0:00:15]} 51. g6 {[%clk 0:00:04]}  fxg6 {[%clk 0:00:14]} 52. Re8+ {[%clk 0:00:02]}  Kf7 {[%clk 0:00:14]} 53. Re7+ {[%clk 0:00:02]}  Kf8 {[%clk 0:00:13]} 54. Ke6 {[%clk 0:00:02]}  Bg3 {[%clk 0:00:13]} 55. Rf7+ {[%clk 0:00:03]}  Ke8 {[%clk 0:00:12]} 56. d7+ {[%clk 0:00:03]}  Kd8 {[%clk 0:00:12]} 57. Rf8+ {[%clk 0:00:04]}  Kc7 {[%clk 0:00:13]} 58. d8=Q+ {[%clk 0:00:05]}  Kb7 {[%clk 0:00:13]} 59. Qa8+ {[%clk 0:00:05]}  Kb6 {[%clk 0:00:13]} 60. Rb8+ {[%clk 0:00:06]} 1-0


[Site "https://www.chess.com"]

[Event "Titled Tuesday Blitz May 25 2021"]
[White "Boyer, Mahel"]
[Black "Vega Gutierrez, Sabrina"]
[WhiteFideId "45102422"]
[BlackFideId "2219026"]
[WhiteElo "2325"]
[BlackElo "2281"]
[Result "0-1"]
[Round "04"]
[TimeControl "180+1"]
[Date "2021.05.25"]
[WhiteClock "0:00:03"]
[BlackClock "0:00:39"]

1. d4 {[%clk 0:03:00]}  d5 {[%clk 0:02:55]} 2. Nf3 {[%clk 0:02:54]}  Nf6 {[%clk 0:02:53]} 3. g3 {[%clk 0:02:51]}  c6 {[%clk 0:02:52]} 4. Bg2 {[%clk 0:02:47]}  Bg4 {[%clk 0:02:51]} 5. Ne5 {[%clk 0:02:47]}  Bh5 {[%clk 0:02:51]} 6. c4 {[%clk 0:02:42]}  e6 {[%clk 0:02:47]} 7. O-O {[%clk 0:02:36]}  Nbd7 {[%clk 0:02:46]} 8. Nc3 {[%clk 0:02:35]}  dxc4 {[%clk 0:02:35]} 9. Nxc4 {[%clk 0:02:33]}  Be7 {[%clk 0:02:32]} 10. Qb3 {[%clk 0:02:32]}  Nb6 {[%clk 0:02:28]} 11. Na5 {[%clk 0:02:32]}  Qd7 {[%clk 0:02:23]} 12. Bg5 {[%clk 0:02:20]}  O-O {[%clk 0:02:22]} 13. Rfd1 {[%clk 0:02:13]}  h6 {[%clk 0:02:16]} 14. Bxf6 {[%clk 0:02:13]}  Bxf6 {[%clk 0:02:16]} 15. Ne4 {[%clk 0:02:14]}  Be7 {[%clk 0:02:14]} 16. Nc5 {[%clk 0:02:12]}  Qc7 {[%clk 0:01:50]} 17. Ncxb7 {[%clk 0:02:04]}  Bxe2 {[%clk 0:01:45]} 18. Re1 {[%clk 0:02:04]}  Ba6 {[%clk 0:01:42]} 19. Nc5 {[%clk 0:02:04]}  Bxc5 {[%clk 0:01:39]} 20. dxc5 {[%clk 0:02:05]}  Nd5 {[%clk 0:01:39]} 21. Nc4 {[%clk 0:02:04]}  Rab8 {[%clk 0:01:38]} 22. Qc2 {[%clk 0:02:05]}  Bxc4 {[%clk 0:01:34]} 23. Qxc4 {[%clk 0:02:05]}  Rxb2 {[%clk 0:01:35]} 24. Rab1 {[%clk 0:02:05]}  Rfb8 {[%clk 0:01:34]} 25. Rbc1 {[%clk 0:01:51]}  Qa5 {[%clk 0:01:32]} 26. Bxd5 {[%clk 0:01:49]}  Qd2 {[%clk 0:01:16]} 27. Qf1 {[%clk 0:01:05]}  exd5 {[%clk 0:01:11]} 28. Re7 {[%clk 0:00:56]}  Rxa2 {[%clk 0:01:10]} 29. Rce1 {[%clk 0:00:53]}  Rbb2 {[%clk 0:01:08]} 30. R1e2 {[%clk 0:00:28]}  Qxe2 {[%clk 0:00:58]} 31. Rxe2 {[%clk 0:00:29]}  Rxe2 {[%clk 0:00:59]} 32. Qh3 {[%clk 0:00:30]}  Rxf2 {[%clk 0:00:55]} 33. Qc8+ {[%clk 0:00:28]}  Kh7 {[%clk 0:00:55]} 34. Qd7 {[%clk 0:00:26]}  a5 {[%clk 0:00:46]} 35. g4 {[%clk 0:00:15]}  a4 {[%clk 0:00:45]} 36. g5 {[%clk 0:00:15]}  hxg5 {[%clk 0:00:42]} 37. Qh3+ {[%clk 0:00:15]}  Kg6 {[%clk 0:00:42]} 38. Qd3+ {[%clk 0:00:15]}  f5 {[%clk 0:00:42]} 39. Qe3 {[%clk 0:00:12]}  Rfe2 {[%clk 0:00:40]} 40. Qh3 {[%clk 0:00:03]}  Ra1+ {[%clk 0:00:39]} 41. Qf1 {[%clk 0:00:03]}  Rxf1+ {[%clk 0:00:39]} 0-1


[Site "https://www.chess.com"]

[Event "Titled Tuesday Blitz May 25 2021"]
[White "Chernomordik, Pavel"]
[Black "Jarovinsky, Alexey"]
[WhiteFideId "2804530"]
[BlackFideId "14115131"]
[WhiteElo "2299"]
[BlackElo "2446"]
[Result "1-0"]
[Round "04"]
[TimeControl "180+1"]
[Date "2021.05.25"]
[WhiteClock "0:00:13"]
[BlackClock "0:00:04"]

1. e4 {[%clk 0:03:00]}  Nc6 {[%clk 0:02:54]} 2. Nf3 {[%clk 0:03:00]}  d6 {[%clk 0:02:52]} 3. d4 {[%clk 0:02:58]}  Bg4 {[%clk 0:02:50]} 4. c3 {[%clk 0:02:49]}  Nf6 {[%clk 0:02:48]} 5. Bd3 {[%clk 0:02:44]}  e5 {[%clk 0:02:45]} 6. d5 {[%clk 0:02:42]}  Nb8 {[%clk 0:02:44]} 7. h3 {[%clk 0:02:40]}  Bxf3 {[%clk 0:02:43]} 8. Qxf3 {[%clk 0:02:40]}  Nbd7 {[%clk 0:02:42]} 9. Be3 {[%clk 0:02:37]}  Be7 {[%clk 0:02:40]} 10. Nd2 {[%clk 0:02:35]}  h6 {[%clk 0:02:32]} 11. O-O {[%clk 0:02:33]}  Nh7 {[%clk 0:02:30]} 12. b4 {[%clk 0:02:26]}  Bg5 {[%clk 0:02:28]} 13. Nc4 {[%clk 0:02:20]}  O-O {[%clk 0:02:19]} 14. a4 {[%clk 0:02:16]}  Bxe3 {[%clk 0:01:52]} 15. Qxe3 {[%clk 0:02:10]}  b6 {[%clk 0:01:43]} 16. Be2 {[%clk 0:02:00]}  Re8 {[%clk 0:01:35]} 17. Qd3 {[%clk 0:01:51]}  Nhf8 {[%clk 0:01:33]} 18. Ne3 {[%clk 0:01:48]}  Ng6 {[%clk 0:01:32]} 19. g3 {[%clk 0:01:48]}  a5 {[%clk 0:01:27]} 20. Nf5 {[%clk 0:01:40]}  Ne7 {[%clk 0:01:24]} 21. Ne3 {[%clk 0:01:37]}  Nf6 {[%clk 0:01:17]} 22. Nc4 {[%clk 0:01:31]}  axb4 {[%clk 0:01:10]} 23. cxb4 {[%clk 0:01:30]}  Qd7 {[%clk 0:01:03]} 24. a5 {[%clk 0:01:19]}  bxa5 {[%clk 0:01:02]} 25. bxa5 {[%clk 0:01:15]}  Qxh3 {[%clk 0:01:01]} 26. Ne3 {[%clk 0:01:15]}  h5 {[%clk 0:00:57]} 27. Rfc1 {[%clk 0:01:12]}  Ra7 {[%clk 0:00:43]} 28. Bf1 {[%clk 0:01:05]}  Qc8 {[%clk 0:00:38]} 29. a6 {[%clk 0:00:59]}  Nd7 {[%clk 0:00:33]} 30. Qd1 {[%clk 0:00:56]}  h4 {[%clk 0:00:30]} 31. gxh4 {[%clk 0:00:49]}  Nc5 {[%clk 0:00:30]} 32. Qf3 {[%clk 0:00:39]}  Nxa6 {[%clk 0:00:25]} 33. Bb5 {[%clk 0:00:34]}  Rf8 {[%clk 0:00:23]} 34. Qe2 {[%clk 0:00:32]}  Ng6 {[%clk 0:00:19]} 35. Rxa6 {[%clk 0:00:27]}  Nf4 {[%clk 0:00:13]} 36. Qf1 {[%clk 0:00:27]}  Rxa6 {[%clk 0:00:12]} 37. Bxa6 {[%clk 0:00:26]}  Qd8 {[%clk 0:00:13]} 38. Ng2 {[%clk 0:00:21]}  Nh5 {[%clk 0:00:10]} 39. Qe2 {[%clk 0:00:20]}  g6 {[%clk 0:00:10]} 40. Qg4 {[%clk 0:00:19]}  Qe7 {[%clk 0:00:09]} 41. Be2 {[%clk 0:00:19]}  Rb8 {[%clk 0:00:08]} 42. Qg5 {[%clk 0:00:17]}  Qd7 {[%clk 0:00:08]} 43. Bxh5 {[%clk 0:00:16]}  Kg7 {[%clk 0:00:05]} 44. Bg4 {[%clk 0:00:16]}  Qa4 {[%clk 0:00:04]} 45. Rxc7 {[%clk 0:00:15]}  Rb1+ {[%clk 0:00:04]} 46. Kh2 {[%clk 0:00:15]}  Qa1 {[%clk 0:00:04]} 47. Qe7 {[%clk 0:00:13]}  Rh1+ {[%clk 0:00:04]} 48. Kg3 {[%clk 0:00:13]} 1-0


[Site "https://www.chess.com"]